Cogmind - Beta 13 @@@ ROGUE MODE // 2024.03.19 @ 20:56:55 Player: J1ang-5h1 Result: Destroyed by D-53 Grenadier with Mini Grenade Launcher Performance ------------- Evolutions (0) 0 Regions Visited (2) 400 Robots Destroyed (25) 125 Value Destroyed (571) 571 Prototype IDs (0) 0 Alien Tech Used (0) 0 Bonus (0) 0 TOTAL SCORE: 1096 Bonus ------- None Cogmind --------- Core Integrity 0/250 Matter 162/300 Energy 265/265 System Corruption 6% Temperature Cool (0) Movement Rolling (155) Ox5 Location -10/Mines Parts ------- > --- POWER (1) -------- Improved Ion Engine > --- PROPULSION (2) --- Wheel > --- UTILITY (2) ------ Improved Heat Sink High-capacity Storage Unit > --- WEAPON (2) ------- Autogun > --- INVENTORY (20) --- Improved Ion Engine Improved Ion Engine Visual Processing Unit Trap Extractor (0/4) Heavy EM Pulse Gun Heavy EM Pulse Gun Heavy EM Pulse Gun Heavy EM Pulse Gun Beam Rifle Beam Rifle Beam Rifle Beam Rifle Autogun Autogun Hammer Peak State ------------ > --- POWER ------------ Improved Ion Engine > --- PROPULSION ------- Compact Wheel > --- UTILITY ---------- Improved Heat Sink High-capacity Storage Unit > --- WEAPON ----------- Autogun Autogun > --- INVENTORY -------- Improved Ion Engine Improved Ion Engine Wheel Wheel Visual Processing Unit Trap Extractor Heavy EM Pulse Gun Heavy EM Pulse Gun Heavy EM Pulse Gun Heavy EM Pulse Gun Beam Rifle Beam Rifle Beam Rifle Beam Rifle Autogun Autogun Hammer [Rating: 14] Favorites ----------- Power Ion Engine Engine Ion Engine Propulsion Compact Wheel Leg Aluminum Leg Wheel Compact Wheel Utility High-capacity Storage Unit Device Sensor Array Storage High-capacity Storage Unit Processor Transport Network Coupler Weapon Autogun Energy Gun EM Pulse Gun Ballistic Gun Autogun Build | -11 -10 -10 ------- Run | Yrd Mat Min Slots Evolved . | . . . Power . | . . . Propulsion . | . . . Utility . | . . . Weapon . | . . . Parts Attached 16 | . 9 7 Power 3 | . 1 2 Engine 3 | . 1 2 Core . | . . . Reactor . | . . . Propulsion 4 | . 2 2 Treads . | . . . Leg . | . . . Wheel 4 | . 2 2 Hover . | . . . Flight . | . . . Utility 5 | . 3 2 Device 3 | . 1 2 Storage 1 | . 1 . Processor 1 | . 1 . Hackware . | . . . Protection . | . . . Artifact . | . . . Weapon 4 | . 3 1 Energy Gun 1 | . 1 . Energy Cannon . | . . . Ballistic Gun 3 | . 2 1 Ballistic Cannon . | . . . Launcher . | . . . Special Weapon . | . . . Impact Weapon . | . . . Slashing Weapon . | . . . Piercing Weapon . | . . . Special Melee Weapon . | . . . Unidentified Prototypes . | . . . Parts Lost 6 | . . 6 Power 1 | . . 1 Propulsion 3 | . . 3 Utility 1 | . . 1 Weapon 1 | . . 1 Highest Loss Streak 4 | . . 4 To Critical Strikes . | . . . Average Slot Usage (%) 91 | . 93 81 Engine 12 | . 11 14 Leg 9 | . 11 . Wheel 15 | . 16 10 Device 7 | . 5 13 Storage 14 | . 14 14 Processor 3 | . 4 . Energy Gun 4 | . 5 . Ballistic Gun 23 | . 22 27 Naked Turns . | . . . Heaviest Build 54 | 14 53 54 Greatest Support 32 | 20 32 32 Greatest Overweight (x) 17 | . 1 17 Average Overweight (x) . | . . 4 Largest Inventory Capacity 20 | 8 20 20 Average Capacity 15 | 8 14 20 Most Carried 20 | 6 20 20 Average Carried 14 | 6 13 17 Final Capacity 20 | 8 20 20 Final Carried 20 | 6 20 15 Class Distribution -------------------- 100% | Mutant Dominant Class ---------------- Mutant | -10/Materials Mutant | -10/Mines Resources | -11 -10 -10 ----------- Run | Yrd Mat Min Matter Collected 682 | 200 395 87 Remotely . | . . . Salvage Created 980 | . 855 125 Parts 62 | . 56 6 Haulers Intercepted 2 | . 2 . Recyclers Shooed 2 | . 2 . Parts Field Recycled . | . . . Retrieved Matter . | . . . Parts Self-Destructed . | . . . Prevented . | . . . Kills | -11 -10 -10 ------- Run | Yrd Mat Min Combat Hostiles Destroyed 24 | . 16 8 Guns 24 | . 16 8 Classes Destroyed 7 | . 6 1 Worker 1 | . 1 . Hauler 2 | . 2 . Recycler 1 | . 1 . Watcher 2 | . 2 . Swarmer 6 | . 3 3 Grunt 13 | . 13 . Assembled 5 | . . 5 Best Kill Streak 5 | . 5 3 Combat Bots Only 4 | . 4 3 Max Kills in Single Turn 2 | . 1 2 Gunslinging . | . . . Exploded . | . . . Melee . | . . . Uniques/NPCs Destroyed . | . . . Combat | -11 -10 -10 -------- Run | Yrd Mat Min Hostile Shots Fired 105 | . 43 62 Missed 34 | . 19 15 Damage Taken 1124 | . 239 885 Core 285 | . 49 236 Absorbed by Shields . | . . . Core Remaining (%) 100 | 100 . . Volleys Fired 77 | . 55 22 Largest 2 | . 2 2 Hottest 70 | . 70 46 Shots Fired 153 | . 109 44 Gun 153 | . 109 44 Cannon . | . . . Launcher . | . . . Special . | . . . Kinetic 127 | . 83 44 Thermal 25 | . 25 . Explosive . | . . . Electromagnetic 1 | . 1 . Robot Hit Streak 7 | . 7 6 Robot Miss Streak 5 | . 3 5 Penetration Max . | . . . Secondary Targets 5 | . 3 2 Max Gunslinging Chain 1 | . 1 1 Shots Hit Robots 94 | . 70 24 Core Hits 44 | . 32 12 Critical Kills 3 | . 1 2 Critical Parts Destroyed . | . . . Critical Strikes 6 | . 4 2 Burn 3 | . 3 . Destroy 3 | . 1 2 Melee Attacks . | . . . Impact . | . . . Slashing . | . . . Piercing . | . . . Sneak Attacks . | . . . Combat Hostiles . | . . . Follow-up Attacks . | . . . Damage Inflicted 1440 | . 1045 395 Guns 1440 | . 1045 395 Cannons . | . . . Explosions . | . . . Melee . | . . . Ramming . | . . . Kinetic 1232 | . 837 395 Thermal 208 | . 208 . Explosive . | . . . Electromagnetic . | . . . Impact . | . . . Slashing . | . . . Piercing . | . . . Highest Corruption 6 | . . 6 Average Corruption 6 | . . 6 Corruption Purged . | . . . Corruption Blocked . | . . . Effects 4 | . . 4 Matter Fused 1 | . . 1 Heat Flow Errors 1 | . . 1 Energy Discharges 1 | . . 1 Data Loss (minor) 1 | . . 1 Overload Shots . | . . . Overflow Damage . | . . . Projectiles . | . . . Explosions . | . . . Melee . | . . . Knockbacks . | . . . Impact . | . . . Kinetic . | . . . Secondary . | . . . Self-Inflicted Damage . | . . . Shots . | . . . Rammed . | . . . Targets Rammed . | . . . Kicked . | . . . Crushed . | . . . Highest Temperature 237 | . 123 237 Average Temperature 37 | . 38 35 Received Heat Transfer 93 | . 93 . Siege Activations . | . . . Robots Corrupted . | . . . Combat Hostiles . | . . . Parts Fried . | . . . Impact Corruptions . | . . . Robots Melted . | . . . Combat Hostiles . | . . . Parts Melted 1 | . 1 . Heat Transferred 814 | . 814 . Parts Sabotaged . | . . . Parts Stolen . | . . . Parts Stripped . | . . . Power Chain Reactions . | . . . Alert | -11 -10 -10 ------- Run | Yrd Mat Min Peak Influence 249 | . 249 211 Initial 96 | . . 96 Average 92 | . 76 177 Maximum Alert Level 1 | . 1 1 Low Security (%) 90 | 100 92 81 Level 1 9 | . 7 18 Level 2 . | . . . Level 3 . | . . . Level 4 . | . . . Level 5 . | . . . High Security . | . . . Max Security . | . . . Squads Dispatched 5 | . 5 . Investigation 2 | . 2 . Extermination . | . . . Reinforcement 3 | . 3 . Assault . | . . . Garrison . | . . . Intercept . | . . . Searches Triggered . | . . . Construction Impeded . | . . . Haulers Reinforced . | . . . Active Scanning Responses . | . . . Cargo Convoy Interrupts . | . . . Stealth | -11 -10 -10 --------- Run | Yrd Mat Min Distress Signals . | . . . Communications Jammed . | . . . Distress Signals . | . . . Times Spotted 36 | . 24 12 Peak Tracking Total 4 | . 4 3 Tactical Retreats 1 | . 1 . Traps | -11 -10 -10 ------- Run | Yrd Mat Min Traps Triggered . | . . . Indirectly . | . . . Trap Hack Attempts . | . . . Triggered . | . . . Disarmed . | . . . Reprogrammed . | . . . Reused . | . . . Traps Extracted . | . . . Installed . | . . . Triggered . | . . . Machines | -11 -10 -10 ---------- Run | Yrd Mat Min Machines Disabled . | . . . Max in Single Turn . | . . . Machines Repaired . | . . . Machines Dismantled . | . . . Machines Sabotaged . | . . . Overloaded Fab Kills . | . . . Hacking | -11 -10 -10 --------- Run | Yrd Mat Min Machines Accessed 7 | . 7 . Terminals 5 | . 5 . Fabricators . | . . . Repair Stations . | . . . Recycling Units 2 | . 2 . Scanalyzers . | . . . Garrison Access . | . . . Total Hacks 14 | . 14 . Successful 7 | . 7 . Failed 7 | . 7 . Catastrophic 2 | . 2 . Database Lockouts . | . . . Manual 12 | . 12 . Terminals 12 | . 12 . Fabricators . | . . . Repair Stations . | . . . Recycling Units 2 | . 2 . Scanalyzers . | . . . Garrison Access . | . . . Terminal Hacks 4 | . 4 . Robot Analysis 4 | . 4 . Fabricator Hacks . | . . . Repair Station Hacks . | . . . Recycling Unit Hacks . | . . . Scanalyzer . | . . . Garrison Access Hacks . | . . . Unauthorized Hacks 3 | . 3 . Terminals 1 | . 1 . Botnet 1 | . 1 . Fabricators . | . . . Repair Stations . | . . . Recycling Units 2 | . 2 . Tunnel 2 | . 2 . Scanalyzers . | . . . Garrison Access . | . . . Data Cores Recovered . | . . . Used . | . . . Hacking Detections 5 | . 5 . Full Trace Events . | . . . Feedback Events . | . . . Feedback Blocked . | . . . Robot Schematics Acquired . | . . . Robots Built . | . . . Authchips . | . . . Time . | . . . Total Robot Build Rating . | . . . Part Schematics Acquired . | . . . Parts Built . | . . . Authchips . | . . . Time . | . . . Total Part Build Rating . | . . . Parts Repaired . | . . . Time . | . . . Parts Recycled . | . . . Recycled Matter . | . . . Retrieved Matter . | . . . Retrieved Components . | . . . Parts Scanalyzed . | . . . Part Schematics Acquired . | . . . Parts Damaged . | . . . Bothacking | -11 -10 -10 ------------ Run | Yrd Mat Min Used RIF Installer . | . . . Robots Hacked . | . . . Non-combat . | . . . Combat . | . . . Robot Hacks Applied . | . . . Relay Couplers Released . | . . . Fabnet Peak Effective % . | . . . Robots Rewired . | . . . Allies Hacked . | . . . Hacks Repelled . | . . . Allies | -11 -10 -10 -------- Run | Yrd Mat Min Total Allies . | . . . Largest Group . | . . . Highest-Rated Group . | . . . Highest-Rated Ally . | . . . Total Orders . | . . . Ally Attacks . | . . . Total Damage . | . . . Kills . | . . . Allies Corrupted . | . . . Allies Melted . | . . . Intel | -11 -10 -10 ------- Run | Yrd Mat Min Robot Analysis Total 4 | . 4 . Derelict Logs Recovered . | . . . Drone Launches . | . . . Drone Recoveries . | . . . Exploration | -11 -10 -10 ------------- Run | Yrd Mat Min Turns Passed 1221 | 2 1019 200 Spaces Moved 726 | 2 676 48 Core 10 | . . 10 Treads . | . . . Legs 270 | 2 268 . Wheels 446 | . 408 38 Hover . | . . . Flight . | . . . Fastest Speed 110 | 120 115 110 Average Speed 127 | 120 116 279 Slowest Speed 900 | 120 120 900 Overloaded Moves . | . . . Propulsion Burnouts . | . . . Robots Hopped . | . . . Cave-ins Triggered . | . . . Exploration Rate (%) 36 | 3 91 16 Regions Visited 2 Branch Regions 1 Pre-discovered Areas 2 | . 2 . Known Exits Taken . | . . . Unknown Exits Taken 2 | 1 1 . Scrap Searched . | . . . Spaces Dug . | . . . Terrain Destroyed . | . . . Melee . | . . . Projectile . | . . . AOE . | . . . Terrain Rammed . | . . . Walls Destroyed . | . . . Machines Disabled . | . . . Actions | -11 -10 -10 --------- Run | Yrd Mat Min Total 891 | 1 812 78 Wait 29 | . 29 . Move 724 | 1 675 48 Hop . | . . . Pick Up 28 | . 28 . Fast Attach 3 | . 3 . Attach 9 | . 4 5 Detach . | . . . Swap 4 | . 2 2 Drop 17 | . 16 1 Fire 77 | . 55 22 Melee . | . . . Ram . | . . . Kick . | . . . Crush . | . . . Escape Stasis . | . . . Rewire . | . . . Trap . | . . . Miscellaneous . | . . . Route ------- -11/Scrapyard -10/Materials (discovered 3 exits: [*Mat x2] / [*Min]) -10/Mines History --------- Turn | Location | Event 1 | -11/Scrapyard | Discovered new exit (range 1) 3 | -11/Scrapyard | Entered Materials 213 | -10/Materials | Discovered new exit (range 15) 333 | -10/Materials | Build established: Mutant 571 | -10/Materials | Discovered new exit (range 8) 612 | -10/Materials | Discovered new exit (range 11) 1022 | -10/Materials | Entered Mines 1023 | -10/Mines | Assembled infested the area 1088 | -10/Mines | Core integrity fell below 50% 1119 | -10/Mines | Core integrity fell below 20% 1129 | -10/Mines | Lost 4 parts (1p2n1u) 1222 | -10/Mines | Destroyed by D-53 Grenadier with Mini Grenade Launcher Last Messages --------------- 01093_ Com. Wheel destroyed. 01093_ Sensor Array destroyed. 01093_ System corrupted by crushing effect (+1). 01093_ System corrupted by crushing effect (+4). 01093_ Knocked back. 01097_ as-52925 destroyed. 01097_ Switching to secondary target: as-43369. 01098_ Com. Wheel destroyed. 01115_ as-43369 destroyed. 01115_ Switching to secondary target: as-76892. 01118_ as-76892 suffers critical hit (Destroy). 01118_ as-76892 destroyed. 01122_ Acquired 17 matter. 01126_ System corrupted: Component data lost. 01142_ System corrupted: Heat flow error (+270). 01163_ System corrupted: Energy discharge (-90). 01202_ System corrupted: Matter fused (-9). 01210_ Autogun destroyed. 01219_ Wheel destroyed. Map ----- +----------------------------------------------------+ | ???### #????????????? #????????????????? | | ??##= =##???????????????????????????????? | | ??# = =#???????????????????????????????? | | ??# * #???????????????????????????????? | | ??# #???????????????????????????????? | | ??# ##???????????????????????????????? | | ??# ######??? ??????????????????????? | | ??## #??? #??????????????????????? | | ???# ### #?## #??????????????????????? | | ??# #?# ## ???????????????????????? | | ??# ##?# %## #???????????????????????? | | ??## ##??# %## #???????? ??????????????? | | ???###???# ## ##?????? ????????????? | | ?????????# ## ##???? ????????????? | | ???????### #???? ????????????? | | ???????# # < #??? #????????????? | | ???????# dd ##??# #?????????????? | | ???????# #### #?????????????? | | ???????# ??????????????? | | ??????## !% ?????????????????? | | ??????# #???????????????????? | | ??????## #???????????????????? | | ???????# #???????????????????? | | ???????## #???????????????????? | | ????????### #???????????????????? | | ??????????## @ #???????????????????? | | ???????????## # #???????????????????? | | ????????????#### ####???????????????????? | | ???????????????# #??????????????????????? | | ???????????????# #??????????????????????? | | ???????????????# #??????????????????????? | | ???????????????# #??????????????????????? | | ???????????????# #??????????????????????? | | ???????????????# #??????????????????????? | | ???????????????? ??????????????????????? | | ???????????????? ??????????????????????? | | ???????????????? ??????????????????????? | | ???????????????? ??????????????????????? | | ???????????????? ???????????????????????? | | ????????????????"???????????????????????? | | ????????????????????????????????????????? | | ????????????????????????????????????????? | | ????????????????????????????????????????? | | ????????????????????????????????????????? | | ????????????????????????????????????????? | | ????????????????????????????????????????? | | | | | | | | | +----------------------------------------------------+ Best States ------------- Heat Dissipation 39 Energy Generation 12 Energy Capacity 265 Matter Stores 300 Matter Capacity 300 Sight Range 16 Robot Scan Range 14 Terrain Scan Density 10 Evasion (%) 55 Item Schematics ----------------- None Robot Schematics ------------------ None Fabricated ------------ Nothing Alien Tech Used ----------------- None Achievements -------------- None Challenges ------------ None Game ------ Seed BlastTargetNullifier Manual? 0 Play Time 00:16:35 Cumulative 198.0 hours Start 2024.03.19 @ 20:42:28 End 2024.03.19 @ 20:56:55 Sessions 1 Manual Loads 0 Difficulty Rogue Special Mode None Game No. 150 Rogue 140 Adventurer 0 Explorer 10 Win Type - Total 3 Types 3/0/0/0/0/0/0/0/0 Lore% 59 Gallery% 69 Achievement% 53 Wizard Run 0 Options --------- Layout 1 ASCII 0 Keyboard 0 Movement Arrows Keybinds 1 Fullscreen 1 Font 24/Smallcaps Map View 50x35 Zoom Use 0% Tactical HUD 1 Map Filters NONE Filters NONE Steam 1 RUN: 9d4708ba-b38c-44ce-a1d8-990a47cb0a6f